bitfinex-derivatives/quotes_BNBF0:USTF0_20251203
["timestamp","ask_amount","ask_price","bid_price","bid_amount"]
[1764786493709,0.19232523,905.36,904.17,1.624]
[1764786493909,0.19232523,905.36,904.18,0.7371003]
[1764786494107,0.19232523,905.36,904.19,0.7371003]
[1764786494314,0.19232523,905.36,904.17,1.624]
[1764786494513,0.19232523,905.36,904.18,0.73717708]
[1764786494808,0.19232523,905.36,904.19,0.73717708]
[1764786495012,0.19232523,905.36,904.17,1.624]
[1764786495210,0.19232523,905.36,904.18,0.73717708]
[1764786495412,0.19232523,905.36,904.19,0.73717708]
[1764786495614,0.19232523,905.36,904.2,0.73717708]
[1764786495909,0.19232523,905.36,904.17,1.624]
[1764786496114,0.19232523,905.36,904.18,0.73726672]
[1764786496315,0.19232523,905.36,904.19,0.73726672]
[1764786496515,0.19232523,905.36,904.2,0.73726672]
[1764786496814,0.19232523,905.36,904.17,1.624]
[1764786497015,0.19232523,905.36,904.18,0.73736609]
[1764786497216,0.19232523,905.36,904.19,0.73736609]
[1764786497512,0.19232523,905.36,904.2,0.73736609]
[1764786497717,0.19232523,905.36,904.21,0.73736609]
[1764786497918,0.19232523,905.36,904.13,1.955]
[1764786498119,0.19232523,905.36,904.14,0.73748672]
[1764786498319,0.19232523,905.36,904.15,0.73748672]
[1764786498618,0.19232523,905.36,904.16,0.73748672]
[1764786498820,0.19232523,905.36,904.17,0.73748672]
[1764786499020,0.19232523,905.36,904.18,0.73748672]
[1764786499322,0.19232523,905.36,904.13,1.955]
[1764786499617,0.19232523,905.36,904.14,0.7377887]
[1764786499919,0.19232523,905.36,904.15,0.7377887]
[1764786500119,0.19232523,905.36,904.16,0.7377887]
[1764786500325,0.19232523,905.36,904.17,0.7377887]
[1764786500520,0.19232523,905.36,904.18,0.7377887]
[1764786500724,0.19232523,905.36,904.19,0.7377887]
[1764786501024,0.19232523,905.36,904.14,1.795]
[1764786501224,0.19232523,905.36,904.15,0.73793595]
[1764786501424,0.19232523,905.36,904.16,0.73793595]
[1764786501624,0.19232523,905.36,904.17,0.73793595]
[1764786501928,0.19232523,905.36,904.18,0.73793595]
[1764786502225,0.19232523,905.36,904.19,0.73793595]
[1764786502426,0.19232523,905.36,904.2,0.73793595]
[1764786502621,0.19232523,905.36,904.21,0.73793595]
[1764786502822,0.19232523,905.36,904.14,1.795]
[1764786503023,0.19232523,905.36,904.15,0.73827856]
[1764786503225,0.19232523,905.36,904.16,0.73827856]
[1764786503423,0.19232523,905.36,904.17,0.73827856]
[1764786503626,0.19232523,905.36,904.18,0.73827856]
[1764786503925,0.19232523,905.36,904.14,1.795]
[1764786512427,0.19232523,905.36,904.15,1.664]
[1764786515128,0.19232523,905.36,904.16,0.73946559]
[1764786515328,0.19232523,905.36,904.17,0.73946559]
[1764786515529,0.19232523,905.36,904.18,0.73946559]
[1764786515732,0.19232523,905.36,904.15,1.664]
[1764786515931,0.19232523,905.36,904.16,0.73949799]
[1764786516128,0.19232523,905.36,904.17,0.73949799]
[1764786516333,0.19232523,905.36,904.18,0.73949799]
[1764786516530,0.19232523,905.36,904.15,1.664]
[1764786516734,0.19232523,905.36,904.16,0.73953473]
[1764786516933,0.19232523,905.36,904.17,0.73953473]
[1764786517227,0.19232523,905.36,904.15,1.664]
[1764786517228,0.19232523,905.36,904.18,0.73953473]
[1764786517434,0.19232523,905.36,904.15,1.664]
[1764786517634,0.19232523,905.36,904.16,0.73954042]
[1764786517834,0.19232523,905.36,904.17,0.73954042]
[1764786518134,0.19232523,905.36,904.18,0.73954042]
[1764786518334,0.19232523,905.36,904.15,1.664]
[1764786518534,0.19232523,905.36,904.16,0.73954791]
[1764786518834,0.19232523,905.36,904.17,0.73954791]
[1764786519135,0.19232523,905.36,904.18,0.73954791]
[1764786519336,0.19232523,905.36,904.15,1.664]
[1764786519631,0.19232523,905.36,904.16,0.73954433]
[1764786519835,0.19232523,905.36,904.17,0.73954433]
[1764786520131,0.19232523,905.36,904.18,0.73954433]
[1764786520331,0.19232523,905.36,904.19,0.73954433]
[1764786520531,0.19232523,905.36,904.15,1.664]
[1764786520732,0.19232523,905.36,904.16,0.73953929]
[1764786520933,0.19232523,905.36,904.17,0.73953929]
[1764786521136,0.19232523,905.36,904.18,0.73953929]
[1764786521337,0.19232523,905.36,904.19,0.73953929]
[1764786521538,0.19232523,905.36,904.2,0.73953929]
[1764786521738,0.19232523,905.36,904.21,0.73953929]
[1764786521935,0.19232523,905.36,904.22,0.73953929]
[1764786522139,0.19232523,905.36,904.23,0.73953929]
[1764786522340,0.19232523,905.36,904.24,0.73953929]
[1764786522642,0.19232523,905.36,904.25,0.73953929]
[1764786522836,0.19232523,905.36,904.26,0.73953929]
[1764786523040,0.19232523,905.36,904.27,0.73953929]
[1764786523339,0.19232523,905.36,904.28,0.73953929]
[1764786523540,0.19232523,905.36,904.15,1.664]
[1764786523736,0.19232523,905.36,904.16,0.73931607]
[1764786523940,0.19232523,905.36,904.17,0.73931607]
[1764786524138,0.19232523,905.36,904.18,0.73931607]
[1764786524340,0.19232523,905.36,904.19,0.73931607]
[1764786524542,0.19232523,905.36,904.2,0.73931607]
[1764786524741,0.19232523,905.36,904.21,0.73931607]
[1764786524942,0.19232523,905.36,904.22,0.73931607]
[1764786525144,0.19232523,905.36,904.23,0.73931607]
[1764786525344,0.19232523,905.36,904.24,0.73931607]
[1764786525542,0.19232523,905.36,904.25,0.73931607]
[1764786525741,0.19232523,905.36,904.26,0.73931607]
[1764786525941,0.19232523,905.36,904.27,0.73931607]
[1764786526145,0.19232523,905.36,904.15,1.664]
[1764786526441,0.19232523,905.36,904.16,0.73916989]
[1764786526640,0.19232523,905.36,904.17,0.73916989]
[1764786526844,0.19232523,905.36,904.18,0.73916989]
[1764786527042,0.19232523,905.36,904.19,0.73916989]
[1764786527347,0.19232523,905.36,904.2,0.73916989]
[1764786527540,0.19232523,905.36,904.21,0.73916989]
[1764786527744,0.19232523,905.36,904.22,0.73916989]
[1764786527940,0.19232523,905.36,904.23,0.73916989]
[1764786528144,0.19232523,905.36,904.24,0.73916989]
[1764786528344,0.19232523,905.36,904.25,0.73916989]
[1764786528542,0.19232523,905.36,904.26,0.73916989]
[1764786528744,0.19232523,905.36,904.15,1.664]
[1764786528945,0.19232523,905.36,904.16,0.7390826]
[1764786529147,0.19232523,905.36,904.17,0.7390826]
[1764786529343,0.19232523,905.36,904.18,0.7390826]
[1764786529547,0.19232523,905.36,904.19,0.7390826]
[1764786529746,0.19232523,905.36,904.2,0.7390826]
[1764786529947,0.19232523,905.36,904.21,0.7390826]
[1764786530143,0.19232523,905.36,904.22,0.7390826]
[1764786530348,0.19232523,905.36,904.23,0.7390826]
[1764786530544,0.19232523,905.36,904.24,0.7390826]
[1764786530845,0.19232523,905.36,904.25,0.7390826]
[1764786531045,0.19232523,905.36,904.26,0.7390826]
[1764786531248,0.19232523,905.36,904.27,0.7390826]
[1764786531547,0.19232523,905.36,904.28,0.7390826]
[1764786531749,0.19232523,905.36,904.29,0.7390826]
[1764786531948,0.19232523,905.36,904.3,0.7390826]
[1764786532145,0.19232523,905.36,904.31,0.7390826]
[1764786532348,0.19232523,905.36,904.32,0.7390826]
[1764786532649,0.19232523,905.36,904.33,0.7390826]
[1764786532947,0.19232523,905.36,904.34,0.7390826]
[1764786533148,0.19232523,905.36,904.35,0.7390826]
[1764786533447,0.19232523,905.36,904.36,0.7390826]
[1764786533744,0.19232523,905.36,904.37,0.7390826]
[1764786533948,0.19232523,905.36,904.38,0.7390826]
[1764786534149,0.19232523,905.36,904.39,0.7390826]
[1764786534347,0.19232523,905.36,904.4,0.7390826]
[1764786534547,0.19232523,905.36,904.41,0.7390826]
[1764786534747,0.19232523,905.36,904.42,0.7390826]
[1764786534948,0.19232523,905.36,904.43,0.7390826]
[1764786535147,0.19232523,905.36,904.15,1.664]
[1764786535348,0.19232523,905.36,904.16,0.73846433]
[1764786535650,0.19232523,905.36,904.15,1.664]
[1764786535651,0.19232523,905.36,904.17,0.73846433]
[1764786535947,0.19232523,905.36,904.18,0.73846433]
[1764786536147,0.19232523,905.36,904.19,0.73846433]
[1764786536345,0.19232523,905.36,904.2,0.73846433]
[1764786536550,0.19232523,905.36,904.21,0.73846433]
[1764786536852,0.19232523,905.36,904.22,0.73846433]
[1764786537050,0.19232523,905.36,904.23,0.73846433]
[1764786537248,0.19232523,905.36,904.24,0.73846433]
[1764786537450,0.19232523,905.36,904.25,0.73846433]
[1764786537648,0.19232523,905.36,904.26,0.73846433]
[1764786537847,0.19232523,905.36,904.27,0.73846433]
[1764786538046,0.19232523,905.36,904.28,0.73846433]
[1764786538251,0.19232523,905.36,904.29,0.73846433]
[1764786538449,0.19232523,905.36,904.3,0.73846433]
[1764786538753,0.19232523,905.36,904.31,0.73846433]
[1764786538953,0.19232523,905.36,904.32,0.73846433]
[1764786539154,0.19232523,905.36,904.33,0.73846433]
[1764786539354,0.19232523,905.36,904.34,0.73846433]
[1764786539550,0.19232523,905.36,904.35,0.73846433]
[1764786539753,0.19232523,905.36,904.36,0.73846433]
[1764786539956,0.19232523,905.36,904.37,0.73846433]
[1764786540255,0.19232523,905.36,904.38,0.73846433]
[1764786540456,0.19232523,905.36,904.39,0.73846433]
[1764786540651,0.19232523,905.36,904.4,0.73846433]
[1764786540856,0.19232523,905.36,904.41,0.73846433]
[1764786541051,0.19232523,905.36,904.42,0.73846433]
[1764786541255,0.19232523,905.36,904.43,0.73846433]
[1764786541452,0.19232523,905.36,904.44,0.73846433]
[1764786541656,0.19232523,905.36,904.45,0.73846433]
[1764786541857,0.19232523,905.36,904.46,0.73846433]
[1764786542058,0.19232523,905.36,904.46,1.901]
[1764786554270,2.75553825,906.0,904.46,1.901]
[1764786554469,0.19230185,905.14,904.46,1.901]
[1764786554666,2.75553825,906.0,904.46,1.901]
[1764786554970,0.19230185,904.98,904.46,1.901]
[1764786555170,0.01138003,905.88,904.15,1.664]
[1764786555370,2.75553825,905.92,904.16,0.73675327]
[1764786555665,2.75553825,905.92,904.17,0.73675327]
[1764786555870,2.75553825,905.92,904.18,0.73675327]
[1764786556070,2.75553825,905.92,904.19,0.73675327]
[1764786556265,2.75553825,905.92,904.2,0.73675327]
[1764786556566,0.19232098,905.49,904.21,0.73675327]
[1764786556766,0.19232098,905.49,904.22,0.73675327]
[1764786556967,0.19232098,905.49,904.23,0.73675327]
[1764786557270,0.19232098,905.49,904.24,0.73675327]
[1764786557471,0.19232098,905.49,904.25,0.73675327]
[1764786557770,0.19232098,905.49,904.26,0.73675327]
[1764786557968,0.19232098,905.49,904.27,0.73675327]
[1764786558171,0.19232098,905.49,904.24,1.952]
[1764786558368,0.19232098,905.49,904.25,0.73676577]
[1764786558572,0.19232098,905.49,904.26,0.73676577]
[1764786558769,0.19232098,905.49,904.27,0.73676577]
[1764786558966,0.19232098,905.49,904.24,1.952]
[1764786559171,0.19232098,905.49,904.25,0.73676597]
[1764786559371,0.19232098,905.49,904.26,0.73676597]
[1764786559669,0.19232098,905.49,904.27,0.73676597]
[1764786559971,0.19232098,905.49,904.24,1.952]
[1764786560169,0.19232098,905.49,904.25,0.73677551]
[1764786560468,0.19232098,905.49,904.26,0.73677551]
[1764786560671,0.19232098,905.49,904.27,0.73677551]
[1764786560870,0.19232098,905.49,904.24,1.952]
[1764786561069,0.19232098,905.49,904.25,0.73679148]
[1764786561269,0.19232098,905.49,904.26,0.73679148]
[1764786561467,0.19232098,905.49,904.27,0.73679148]
[1764786561668,0.19232098,905.49,904.24,1.952]
[1764786561974,0.19232098,905.49,904.25,0.73680431]
[1764786562168,0.19232098,905.49,904.26,0.73680431]
[1764786562373,0.19232098,905.49,904.27,0.73680431]
[1764786562574,0.19232098,905.49,904.28,0.73681755]
[1764786562774,0.19232098,905.49,904.29,0.73681755]
[1764786562974,0.19232098,905.49,904.3,0.73681755]
[1764786563174,0.19232098,905.49,904.24,1.952]
[1764786563473,0.19232098,905.49,904.25,0.73683553]
[1764786563675,0.19232098,905.49,904.24,1.952]
[1764786563676,0.19232098,905.49,904.26,0.73683553]
[1764786563975,0.19232098,905.49,904.27,0.73683553]
[1764786564175,0.19232098,905.49,904.28,0.73683553]
[1764786564375,0.19232098,905.49,904.29,0.73683553]
[1764786564575,0.19232098,905.49,904.3,0.73683553]
[1764786564778,0.19232098,905.49,904.24,1.952]
[1764786565075,0.19232098,905.49,904.25,0.73689977]
[1764786565274,0.19232098,905.49,904.26,0.73689977]
[1764786565477,0.19232098,905.49,904.27,0.73689977]
[1764786565674,0.19232098,905.49,904.28,0.73689977]
[1764786565877,0.19232098,905.49,904.29,0.73689977]
[1764786566074,0.19232098,905.49,904.3,0.73689977]
[1764786566279,0.19232098,905.49,904.31,0.73689977]
[1764786566576,0.19232098,905.49,904.32,0.73689977]
[1764786566874,0.19232098,905.49,904.33,0.73689977]
[1764786567078,0.19232098,905.49,904.34,0.73689977]
[1764786567375,0.19232098,905.49,904.24,1.952]
[1764786567676,0.19232098,905.49,904.25,0.7372055]
[1764786567879,0.19232098,905.49,904.26,0.7372055]
[1764786568079,0.19232098,905.49,904.27,0.7372055]
[1764786568280,0.19232098,905.49,904.28,0.7372055]
[1764786568480,0.19232098,905.49,904.29,0.7372055]
[1764786568673,0.19232098,905.49,904.3,0.7372055]
[1764786568976,0.19232098,905.49,904.31,0.7372055]
[1764786569175,0.19232098,905.49,904.32,0.7372055]
[1764786569379,0.19232098,905.49,904.33,0.7372055]
[1764786569681,0.19232098,905.49,904.34,0.7372055]
[1764786569877,0.19232098,905.49,904.35,0.7372055]
[1764786570082,0.19232098,905.49,904.36,0.7372055]
[1764786570378,0.19232098,905.49,904.37,0.7372055]
[1764786570579,0.19232098,905.49,904.24,1.952]
[1764786570784,0.19232098,905.49,904.25,0.7374097]
[1764786570978,0.19232098,905.49,904.26,0.7374097]
[1764786571182,0.19232098,905.49,904.27,0.7374097]
[1764786571383,0.19232098,905.49,904.28,0.7374097]
[1764786571582,0.19232098,905.49,904.29,0.7374097]
[1764786571781,0.19232098,905.49,904.24,1.952]
[1764786571782,0.19232098,905.49,904.3,0.7374097]
[1764786571981,0.19232098,905.49,904.31,0.7374097]
[1764786572180,0.19232098,905.49,904.24,1.952]
[1764786572379,0.19232098,905.49,904.25,0.7376781]
[1764786572583,0.19232098,905.49,904.26,0.7376781]
[1764786572783,0.19232098,905.49,904.27,0.7376781]
[1764786573079,0.19232098,905.49,904.24,1.952]
[1764786573280,0.19232098,905.49,904.25,0.73780778]
[1764786573478,0.19232098,905.49,904.26,0.73780778]
[1764786573679,0.19232098,905.49,904.27,0.73780778]
[1764786573981,0.19232098,905.49,904.28,0.73780778]
[1764786574184,0.19232098,905.49,904.29,0.73799685]
[1764786574384,0.19232098,905.49,904.24,1.952]
[1764786574581,0.19232098,905.49,904.25,0.73799695]
[1764786574785,0.19232098,905.49,904.26,0.73799695]
[1764786575084,0.19232098,905.49,904.27,0.73799695]
[1764786575384,0.19232098,905.49,904.28,2.29499695]
[1764786575584,0.19232098,905.49,904.29,0.73799695]
[1764786575785,0.19232098,905.49,904.28,1.557]
[1764786575986,0.19232098,905.49,904.29,0.73810445]
[1764786576183,0.19232098,905.49,904.3,0.73820235]
[1764786576386,0.19232098,905.49,904.28,1.557]
[1764786576587,0.19232098,905.49,904.29,0.73822079]
[1764786576784,0.19232098,905.49,904.3,0.73822079]
[1764786576982,0.19232098,905.49,904.28,1.557]
[1764786577189,0.19232098,905.49,904.29,0.73822079]
[1764786577385,0.19232098,905.49,904.3,0.73822079]
[1764786577587,0.19232098,905.49,904.31,0.73822079]
[1764786577785,0.19232098,905.49,904.28,1.557]
[1764786578087,0.19232098,905.49,904.29,0.73834698]
[1764786578287,0.19232098,905.49,904.3,0.73834698]
[1764786578486,0.19232098,905.49,904.31,0.73834698]
[1764786578689,0.19232098,905.49,904.32,0.73834698]
[1764786578885,0.19232098,905.49,904.28,1.557]
[1764786578886,0.19232098,905.49,904.33,0.73834698]
[1764786579086,0.19232098,905.49,904.34,0.73834698]
[1764786579291,0.19232098,905.49,904.35,0.73834698]
[1764786579490,0.19232098,905.49,904.36,0.73834698]
[1764786579689,0.19232098,905.49,904.37,0.73834698]
[1764786579889,0.19232098,905.49,904.38,0.73834698]
[1764786580084,0.19232098,905.49,904.39,0.73834698]
[1764786580286,0.19232098,905.49,904.4,0.73834698]
[1764786580492,0.19232098,905.49,904.41,0.73834698]
[1764786580785,0.19232098,905.49,904.42,0.73834698]
[1764786580990,0.19232098,905.49,904.43,0.73834698]
[1764786581191,0.19232098,905.49,904.44,0.73834698]
[1764786581389,0.19232098,905.49,904.45,0.73834698]
[1764786581587,0.19232098,905.49,904.46,0.73834698]
[1764786581786,0.19232098,905.49,904.47,0.73834698]
[1764786581989,0.19232098,905.49,904.48,0.73834698]
[1764786582193,0.19232098,905.49,904.49,0.73834698]
[1764786582488,0.19232098,905.49,904.5,0.73834698]
[1764786582692,0.19232098,905.49,904.51,0.73834698]
[1764786582892,0.19232098,905.49,904.52,0.73834698]
[1764786583091,0.19232098,905.49,904.53,0.73834698]
[1764786583294,0.19232098,905.49,904.54,0.73834698]
[1764786583491,0.19232098,905.49,904.55,0.73834698]
[1764786583786,0.19232098,905.49,904.56,0.73834698]
[1764786583992,0.19232098,905.49,904.57,0.73834698]
[1764786584187,0.19232098,905.49,904.58,0.73834698]
[1764786584388,0.19232098,905.49,904.29,0.82523056]
[1764786584593,0.19232098,905.49,904.3,0.73851058]
[1764786584888,0.19232098,905.49,904.31,0.73851058]
[1764786585092,0.19232098,905.49,904.32,0.73851058]
[1764786585289,0.19232098,905.49,904.33,0.73851058]
[1764786585492,0.19232098,905.49,904.34,0.73851058]
[1764786585689,0.19232098,905.49,904.35,0.73851058]
[1764786585888,0.19232098,905.49,904.36,0.73851058]
[1764786586087,0.19232098,905.49,904.37,0.73851058]
[1764786586292,0.19232098,905.49,904.38,0.73851058]
[1764786586492,0.19232098,905.49,904.39,0.73851058]
[1764786586692,0.19232098,905.49,904.4,0.73851058]
[1764786586892,0.19232098,905.49,904.41,0.73851058]
[1764786587189,0.19232098,905.49,904.42,0.73851058]
[1764786587394,0.19232098,905.49,904.43,0.73851058]
[1764786587589,0.19232098,905.49,904.44,0.73851058]
[1764786587893,0.19232098,905.49,904.45,0.73851058]
[1764786588087,0.19232098,905.49,904.46,0.73851058]
[1764786588291,0.19232098,905.49,904.47,0.73851058]
[1764786588488,0.19232098,905.49,904.48,0.73851058]
[1764786588692,0.19232098,905.49,904.49,0.73851058]
[1764786588889,0.19232098,905.49,904.5,0.73851058]
[1764786589088,0.19232098,905.49,904.51,0.73851058]
[1764786589296,0.19232098,905.49,904.52,0.73851058]
[1764786589493,0.19232098,905.49,904.53,0.73851058]
[1764786589689,0.19232098,905.49,904.54,0.73851058]
[1764786589893,0.19232098,905.49,904.55,0.73851058]
[1764786590096,0.19232098,905.49,904.56,0.73851058]
[1764786590294,0.19232098,905.49,904.57,0.73851058]
[1764786590494,0.19232098,905.49,904.58,0.73851058]
[1764786590696,0.19232098,905.49,904.59,0.73851058]
[1764786590992,0.19232098,905.49,904.3,0.82523056]
[1764786591197,0.19232098,905.49,904.31,0.73839636]
[1764786591393,0.19232098,905.49,904.32,0.73839636]
[1764786591592,0.19232098,905.49,904.33,0.73839636]
[1764786591797,0.19232098,905.49,904.34,0.73839636]
[1764786591996,0.19232098,905.49,904.35,0.73839636]
[1764786592198,0.19232098,905.49,904.36,0.73839636]
[1764786592393,0.19232098,905.49,904.37,0.73839636]
[1764786592692,0.19232098,905.49,904.38,0.73839636]
[1764786592892,0.19232098,905.49,904.39,0.73839636]
[1764786593092,0.19232098,905.49,904.4,0.73839636]
[1764786593297,0.19232098,905.49,904.41,0.73839636]
[1764786593496,0.19232098,905.49,904.42,0.73839636]
[1764786593792,0.19232098,905.49,904.43,0.73839636]
[1764786593999,0.19232098,905.49,904.44,0.73839636]
[1764786594296,0.19232098,905.49,904.38,2.033]
[1764786594297,0.19232098,905.49,904.45,0.73839636]
[1764786594497,0.19232098,905.49,904.46,0.73839636]
[1764786594697,0.19232098,905.49,904.47,0.73839636]
[1764786594897,0.19232098,905.49,904.48,0.73839636]
[1764786595094,0.19232098,905.49,904.49,0.73839636]
[1764786595298,0.19232098,905.49,904.5,0.73839636]
[1764786595499,0.19232098,905.49,904.51,0.73839636]
[1764786595698,0.19232098,905.49,904.38,2.033]
[1764786595699,0.19232098,905.49,904.52,0.73839636]
[1764786595895,0.19232098,905.49,904.53,0.73839636]
[1764786596199,0.19232098,905.49,904.54,0.73839636]
[1764786596398,0.19232098,905.49,904.55,0.73839636]
[1764786596598,0.19232098,905.49,904.56,0.73839636]
[1764786596799,0.19232098,905.49,904.57,0.73839636]
[1764786597000,0.19232098,905.49,904.58,0.73839636]
[1764786597198,0.19232098,905.49,904.59,0.73839636]
[1764786597403,0.19232098,905.49,904.38,2.033]
[1764786597697,0.19232098,905.49,904.39,0.73818848]
[1764786597901,0.19232098,905.49,904.38,2.033]
[1764786597902,0.19232098,905.49,904.4,0.73818848]
[1764786598098,0.19232098,905.49,904.41,0.73818848]
[1764786598401,0.19232098,905.49,904.42,0.73818848]
[1764786598601,0.19232098,905.49,904.43,0.73818848]
[1764786598799,0.19232098,905.49,904.44,0.73818848]
[1764786599001,0.19232098,905.49,904.45,0.73818848]
[1764786599198,0.19232098,905.49,904.43,1.734]
[1764786599199,0.19232098,905.49,904.46,0.73818848]
[1764786599403,0.19232098,905.49,904.47,0.73818848]
[1764786599600,0.19232098,905.49,904.48,0.73818848]
[1764786599805,0.19232098,905.49,904.49,0.73818848]
[1764786600001,0.19232098,905.49,904.5,0.73818848]
[1764786600201,0.19232098,905.49,904.51,0.73818848]
[1764786600504,0.19232098,905.49,904.52,0.73818848]
[1764786600702,0.19232098,905.49,904.53,0.73818848]
[1764786600902,0.19232098,905.49,904.54,0.73818848]
[1764786601101,0.19232098,905.49,904.55,0.73818848]
[1764786601304,0.19232098,905.49,904.56,0.73818848]
[1764786601607,0.19232098,905.49,904.57,0.73818848]
[1764786601808,0.19232098,905.49,904.58,0.73818848]
[1764786602007,0.19232098,905.49,904.59,0.73818848]
[1764786602307,0.19232098,905.49,904.43,1.734]
[1764786602508,0.19232098,905.49,904.44,0.73690744]
[1764786602703,0.19232098,905.49,904.45,0.73690744]
[1764786602908,0.19232098,905.49,904.46,0.73690744]
[1764786603208,0.19232098,905.49,904.47,0.73690744]
[1764786603508,0.19232098,905.49,904.48,0.73690744]
[1764786603709,0.19232098,905.49,904.49,0.73690744]
[1764786604003,0.19232098,905.49,904.5,0.73690744]
[1764786604209,0.19232098,905.49,904.51,0.73690744]
[1764786604410,0.19232098,905.49,904.52,0.73690744]
[1764786604604,0.19232098,905.49,904.53,0.73690744]
[1764786604808,0.19232098,905.49,904.54,0.73690744]
[1764786605004,0.19232098,905.49,904.55,0.73690744]
[1764786605206,0.19232098,905.49,904.56,0.73690744]
[1764786605408,0.19232098,905.49,904.43,1.734]
[1764786605607,0.19232098,905.49,904.44,0.73687314]
[1764786605910,0.19232098,905.49,904.45,0.73687314]
[1764786606212,0.19232098,905.49,904.46,0.73687314]
[1764786606410,0.19232098,905.49,904.47,0.73687314]
[1764786606610,0.19232098,905.49,904.48,0.73687314]
[1764786606810,0.19232098,905.49,904.49,0.73687314]
[1764786607110,0.19232098,905.49,904.5,0.73687314]
[1764786607309,0.19232098,905.49,904.51,0.73687314]
[1764786607507,0.19232098,905.49,904.52,0.73687314]
[1764786607711,0.19232098,905.49,904.53,0.73687314]
[1764786607911,0.19232098,905.49,904.54,0.73687314]
[1764786608111,0.19232098,905.49,904.55,0.73687314]
[1764786608413,0.19232098,905.49,904.56,0.73687314]
[1764786608608,0.19232098,905.49,904.57,0.73687314]
[1764786608807,0.19232098,905.49,904.58,0.73687314]
[1764786609007,0.19232098,905.49,904.59,0.73687314]
[1764786609208,0.19232098,905.49,904.6,0.73687314]
[1764786609411,0.19232098,905.49,904.61,0.73687314]
[1764786609711,0.19232098,905.49,904.62,0.73687314]
[1764786610011,0.19232098,905.49,904.43,1.734]
[1764786610311,0.19232098,905.49,904.44,0.73670186]
[1764786610611,0.19232098,905.49,904.45,0.73670186]
[1764786610910,0.19232098,905.49,904.46,0.73670186]
[1764786611107,0.19232098,905.49,904.43,1.734]
[1764786611108,0.19232098,905.49,904.47,0.73670186]
[1764786611406,0.19232098,905.49,904.43,1.734]
[1764786611407,0.19232098,905.49,904.48,0.73670186]
[1764786611606,0.19232098,905.49,904.49,0.73670186]
[1764786611907,0.19232098,905.49,904.5,0.73670186]
[1764786612110,0.19232098,905.49,904.51,0.73670186]
[1764786612308,0.19232098,905.49,904.52,0.73670186]
[1764786612512,0.19232098,905.49,904.43,1.734]
[1764786612513,0.19232098,905.49,904.53,0.73670186]
[1764786612709,0.19232098,905.49,904.43,1.734]
[1764786612914,0.19232098,905.49,904.44,0.73659601]
[1764786613215,0.19232098,905.49,904.45,0.73659601]
[1764786613510,0.19232098,905.49,904.46,0.73659601]
[1764786613810,0.19232098,905.49,904.47,0.73659601]
[1764786614009,0.19232098,905.49,904.48,0.73659601]
[1764786614213,0.19232098,905.49,904.49,0.73659601]
[1764786614413,0.19232098,905.49,904.43,1.734]
[1764786614414,0.19232098,905.49,904.5,0.73659601]
[1764786614611,0.19232098,905.49,904.51,0.73659601]
[1764786614810,0.19232098,905.49,904.52,0.73659601]
[1764786615113,0.19232098,905.49,904.53,0.73659601]
[1764786615412,0.19232098,905.49,904.54,0.73659601]
[1764786615713,0.19232098,905.49,904.55,0.73659601]
[1764786615907,0.19232098,905.49,904.56,0.73659601]
[1764786616107,0.19232098,905.49,904.57,0.73659601]
[1764786616312,0.19232098,905.49,904.58,0.73659601]
[1764786616509,0.19232098,905.49,904.59,0.73659601]
[1764786616710,0.19232098,905.49,904.6,0.73659601]
[1764786617014,0.19232098,905.49,904.43,1.734]
[1764786617213,0.19232098,905.49,904.44,0.73634957]
[1764786617411,0.19232098,905.49,904.45,0.73634957]
[1764786617609,0.19232098,905.49,904.46,0.73634957]
[1764786617811,0.19232098,905.49,904.47,0.73634957]
[1764786618109,0.19232098,905.49,904.48,0.73634957]
[1764786618309,0.19232098,905.49,904.49,0.73634957]
[1764786618608,0.19232098,905.49,904.5,0.73634957]
[1764786618813,0.19232098,905.49,904.51,0.73634957]
[1764786619009,0.19232098,905.49,904.52,0.73634957]
[1764786619214,0.19232098,905.49,904.53,0.73634957]
[1764786619413,0.19232098,905.49,904.54,0.73634957]
[1764786619614,0.19232098,905.49,904.55,0.73634957]
[1764786619910,0.19232098,905.49,904.56,0.73634957]
[1764786620214,0.19232098,905.49,904.57,0.73634957]
[1764786620409,0.19232098,905.49,904.58,0.73634957]
[1764786620609,0.19232098,905.49,904.59,0.73634957]
[1764786620914,0.19232098,905.49,904.6,0.73634957]
[1764786621209,0.19232098,905.49,904.61,0.73634957]
[1764786621509,0.19232098,905.49,904.62,0.73634957]
[1764786621710,0.19232098,905.49,904.63,0.73634957]
[1764786621910,0.19232098,905.49,904.64,0.73634957]
[1764786622114,0.19232098,905.49,904.65,0.73634957]
[1764786622314,0.19232098,905.49,904.66,0.73634957]
[1764786622614,0.19232098,905.49,904.67,0.73634957]
[1764786622814,0.19232098,905.49,904.68,0.73634957]
[1764786623015,2.75553825,906.5,904.69,0.73634957]
[1764786623214,0.19220573,905.49,904.7,0.73634957]
[1764786623413,2.75553825,906.5,904.65,0.82523056]
[1764786623414,0.00783655,906.4,904.71,0.73634957]
[1764786623615,0.19219989,905.47,904.72,0.73634957]
[1764786623812,0.01393294,906.38,904.73,0.73634957]